{"text_format":"3","workbook":"xlsx","n_sheets":6,"sheets":["Početak","Kontrolna_tabla","Troškovi i prihodi","Izveštaj o budžetu","Liste podataka","Izvedena tabela kategorije"],"not_rendered":{"charts":3,"external_links":1,"defined_names":24,"pivot_tables":2},"read":"whole","date_system":"1900"}

{"sheet":"Početak","index":0,"n_rows":8,"n_cols":2,"rows_kept":8}
[null,"Osnovni podaci o predlošku"]
[null,"Koristite ovaj predložak da biste kreirali polumesečni kućni budžet."]
[null,"Radni list „Kontrolna tabla“ sadrži grafikone za mesečne i godišnje ukupne vrednosti i tabelu za dvonedeljne prihode i troškove."]
[null,"Unesite kategorije u radni list „Liste sa podacima“, a vrednosti u radni list „Prihodi i rashodi“."]
[null,"Osvežite izvedenu tabelu u radnom listu „Izveštaj o budžetu“."]
[null,"Napomena:"]
[null,"Dodatna uputstva su navedena u koloni A u svim radnim listovima. Ovaj tekst je namerno skriven. Da biste uklonili tekst, izaberite kolonu A, a zatim izaberite stavku „IZBRIŠI“. "]
[null,"Da biste saznali više o tabeli, pritisnite taster SHIFT, a zatim unutar tabele pritisnite taster F10, izaberite opciju „TABELA“, a zatim izaberite stavku „ALTERNATIVNI TEKST“. Za izvedene tabele pritisnite taster SHIFT, a zatim unutar tabele pritisnite taster F10, izaberite stavku „OPCIJE IZVEDENE TABELE“, a zatim izaberite karticu „ALTERNATIVNI TEKST“."]

{"sheet":"Kontrolna_tabla","index":1,"n_rows":12,"n_cols":15,"rows_kept":12,"merged":[[0,1,0,13],[1,2,1,7]]}
["Kreirajte kontrolnu tablu za mesečne i godišnje ukupne vrednosti, kao i za dvonedeljne prihode i rashode na ovom radnom listu. Korisna uputstva o tome kako da koristite ovaj radni list nalaze se u ćelijama u ovoj koloni. Naslov ove radne sveske nalazi se u ćeliji sa desne strane, a naslov radnog lista u ćeliji O1.","Polumesečni kućni budžet",{"$nulls":12},"KONTROLNA TABLA"]
["Da biste promenili mesec u ćeliji sa desne strane, izaberite klizač u ćeliji C2, a da biste promenili godinu u ćeliji I2, izaberite klizač u ćeliji J2.",{"$f":"CHOOSE(MonthNumber,\"JANUAR\",\"FEBRUAR\",\"MART\",\"APRIL\",\"MAJ\",\"JUN\",\"JUL\",\"AVGUST\",\"SEPTEMBAR\",\"OKTOBAR\",\"NOVEMBAR\",\"DECEMBAR\")","v":"DECEMBAR"},12,{"$nulls":5},{"$f":"YEAR(TODAY())","v":2022}]
["Oznaka „Ukupne mesečne vrednosti“ nalazi se u ćeliji sa desne strane, a oznaka „Ukupne godišnje vrednosti“ u ćeliji I3.","UKUPNE MESEČNE VREDNOSTI",{"$nulls":6},"UKUPNE GODIŠNJE VREDNOSTI"]
["Trakasti grafikon koji poredi ukupne mesečne prihode sa ukupnim mesečnim rashodima nalazi se u ćeliji C4, a trakasti grafikon koji poredi ukupne godišnje prihode sa ukupnim godišnjim rashodima u ćeliji J4. Sledeće uputstvo se nalazi u ćeliji A8.","PRIHOD",null,{"$f":"MonthlyExpendituresTotals","v":{"v":0,"d":"0 RSD"}},{"$nulls":4},"PRIHOD",null,null,{"$f":"AnnualExpendituresTotals","v":{"v":10742,"d":"10,742 RSD"}}]
[null,"RASHODI",null,{"$f":"MonthlyIncomeTotals","v":{"v":0,"d":"0 RSD"}},{"$nulls":4},"RASHODI",null,null,{"$f":"AnnualIncomeTotals","v":{"v":13200,"d":"13,200 RSD"}}]
[]
[]
["Tabela „Kontrolna tabla“, koja počinje u ćeliji sa desne strane, automatski se ažurira.","Kategorija","JANUAR","FEBRUAR","MART","APRIL","MAJ","JUN","JUL","AVGUST","SEPTEMBAR","OKTOBAR","NOVEMBAR","DECEMBAR","Mini-grafikon"]
[null,"Prihod od 1. do 15.",{"$f":"SUMIFS(Prihod[IZNOS],Prihod[DATUM],\"<=\"&DtMiddle,Prihod[DATUM],\">=\"&DtStart)","v":{"v":0,"d":"0.00 RSD"}},{"$f":"SUMIFS(Prihod[IZNOS],Prihod[DATUM],\"<=\"&DtMiddle,Prihod[DATUM],\">=\"&DtStart)","v":{"v":0,"d":"0.00 RSD"}},{"$f":"SUMIFS(Prihod[IZNOS],Prihod[DATUM],\"<=\"&DtMiddle,Prihod[DATUM],\">=\"&DtStart)","v":{"v":1300,"d":"1,300.00 RSD"}},{"$f":"SUMIFS(Prihod[IZNOS],Prihod[DATUM],\"<=\"&DtMiddle,Prihod[DATUM],\">=\"&DtStart)","v":{"v":3100,"d":"3,100.00 RSD"}},{"$f":"SUMIFS(Prihod[IZNOS],Prihod[DATUM],\"<=\"&DtMiddle,Prihod[DATUM],\">=\"&DtStart)","v":{"v":500,"d":"500.00 RSD"}},{"$f":"SUMIFS(Prihod[IZNOS],Prihod[DATUM],\"<=\"&DtMiddle,Prihod[DATUM],\">=\"&DtStart)","v":{"v":0,"d":"0.00 RSD"}},{"$f":"SUMIFS(Prihod[IZNOS],Prihod[DATUM],\"<=\"&DtMiddle,Prihod[DATUM],\">=\"&DtStart)","v":{"v":0,"d":"0.00 RSD"}},{"$f":"SUMIFS(Prihod[IZNOS],Prihod[DATUM],\"<=\"&DtMiddle,Prihod[DATUM],\">=\"&DtStart)","v":{"v":0,"d":"0.00 RSD"}},{"$f":"SUMIFS(Prihod[IZNOS],Prihod[DATUM],\"<=\"&DtMiddle,Prihod[DATUM],\">=\"&DtStart)","v":{"v":0,"d":"0.00 RSD"}},{"$f":"SUMIFS(Prihod[IZNOS],Prihod[DATUM],\"<=\"&DtMiddle,Prihod[DATUM],\">=\"&DtStart)","v":{"v":0,"d":"0.00 RSD"}},{"$f":"SUMIFS(Prihod[IZNOS],Prihod[DATUM],\"<=\"&DtMiddle,Prihod[DATUM],\">=\"&DtStart)","v":{"v":0,"d":"0.00 RSD"}},{"$f":"SUMIFS(Prihod[IZNOS],Prihod[DATUM],\"<=\"&DtMiddle,Prihod[DATUM],\">=\"&DtStart)","v":{"v":0,"d":"0.00 RSD"}}]
[null,"Prihod od 16. do kraja meseca",{"$f":"SUMIFS(Prihod[IZNOS],Prihod[DATUM],\"<=\"&DtEnd,Prihod[DATUM],\">=\"&DtMiddle+1)","v":{"v":0,"d":"0.00 RSD"}},{"$f":"SUMIFS(Prihod[IZNOS],Prihod[DATUM],\"<=\"&DtEnd,Prihod[DATUM],\">=\"&DtMiddle+1)","v":{"v":0,"d":"0.00 RSD"}},{"$f":"SUMIFS(Prihod[IZNOS],Prihod[DATUM],\"<=\"&DtEnd,Prihod[DATUM],\">=\"&DtMiddle+1)","v":{"v":5700,"d":"5,700.00 RSD"}},{"$f":"SUMIFS(Prihod[IZNOS],Prihod[DATUM],\"<=\"&DtEnd,Prihod[DATUM],\">=\"&DtMiddle+1)","v":{"v":2600,"d":"2,600.00 RSD"}},{"$f":"SUMIFS(Prihod[IZNOS],Prihod[DATUM],\"<=\"&DtEnd,Prihod[DATUM],\">=\"&DtMiddle+1)","v":{"v":0,"d":"0.00 RSD"}},{"$f":"SUMIFS(Prihod[IZNOS],Prihod[DATUM],\"<=\"&DtEnd,Prihod[DATUM],\">=\"&DtMiddle+1)","v":{"v":0,"d":"0.00 RSD"}},{"$f":"SUMIFS(Prihod[IZNOS],Prihod[DATUM],\"<=\"&DtEnd,Prihod[DATUM],\">=\"&DtMiddle+1)","v":{"v":0,"d":"0.00 RSD"}},{"$f":"SUMIFS(Prihod[IZNOS],Prihod[DATUM],\"<=\"&DtEnd,Prihod[DATUM],\">=\"&DtMiddle+1)","v":{"v":0,"d":"0.00 RSD"}},{"$f":"SUMIFS(Prihod[IZNOS],Prihod[DATUM],\"<=\"&DtEnd,Prihod[DATUM],\">=\"&DtMiddle+1)","v":{"v":0,"d":"0.00 RSD"}},{"$f":"SUMIFS(Prihod[IZNOS],Prihod[DATUM],\"<=\"&DtEnd,Prihod[DATUM],\">=\"&DtMiddle+1)","v":{"v":0,"d":"0.00 RSD"}},{"$f":"SUMIFS(Prihod[IZNOS],Prihod[DATUM],\"<=\"&DtEnd,Prihod[DATUM],\">=\"&DtMiddle+1)","v":{"v":0,"d":"0.00 RSD"}},{"$f":"SUMIFS(Prihod[IZNOS],Prihod[DATUM],\"<=\"&DtEnd,Prihod[DATUM],\">=\"&DtMiddle+1)","v":{"v":0,"d":"0.00 RSD"}}]
[null,"Rashodi od 1. do 15.",{"$f":"SUMIFS(Izdaci[IZNOS],Izdaci[DATUM],\"<=\"&DtMiddle+1,Izdaci[DATUM],\">=\"&DtStart)","v":{"v":0,"d":"0.00 RSD"}},{"$f":"SUMIFS(Izdaci[IZNOS],Izdaci[DATUM],\"<=\"&DtMiddle+1,Izdaci[DATUM],\">=\"&DtStart)","v":{"v":0,"d":"0.00 RSD"}},{"$f":"SUMIFS(Izdaci[IZNOS],Izdaci[DATUM],\"<=\"&DtMiddle+1,Izdaci[DATUM],\">=\"&DtStart)","v":{"v":150,"d":"150.00 RSD"}},{"$f":"SUMIFS(Izdaci[IZNOS],Izdaci[DATUM],\"<=\"&DtMiddle+1,Izdaci[DATUM],\">=\"&DtStart)","v":{"v":75,"d":"75.00 RSD"}},{"$f":"SUMIFS(Izdaci[IZNOS],Izdaci[DATUM],\"<=\"&DtMiddle+1,Izdaci[DATUM],\">=\"&DtStart)","v":{"v":2492,"d":"2,492.00 RSD"}},{"$f":"SUMIFS(Izdaci[IZNOS],Izdaci[DATUM],\"<=\"&DtMiddle+1,Izdaci[DATUM],\">=\"&DtStart)","v":{"v":0,"d":"0.00 RSD"}},{"$f":"SUMIFS(Izdaci[IZNOS],Izdaci[DATUM],\"<=\"&DtMiddle+1,Izdaci[DATUM],\">=\"&DtStart)","v":{"v":0,"d":"0.00 RSD"}},{"$f":"SUMIFS(Izdaci[IZNOS],Izdaci[DATUM],\"<=\"&DtMiddle+1,Izdaci[DATUM],\">=\"&DtStart)","v":{"v":0,"d":"0.00 RSD"}},{"$f":"SUMIFS(Izdaci[IZNOS],Izdaci[DATUM],\"<=\"&DtMiddle+1,Izdaci[DATUM],\">=\"&DtStart)","v":{"v":0,"d":"0.00 RSD"}},{"$f":"SUMIFS(Izdaci[IZNOS],Izdaci[DATUM],\"<=\"&DtMiddle+1,Izdaci[DATUM],\">=\"&DtStart)","v":{"v":0,"d":"0.00 RSD"}},{"$f":"SUMIFS(Izdaci[IZNOS],Izdaci[DATUM],\"<=\"&DtMiddle+1,Izdaci[DATUM],\">=\"&DtStart)","v":{"v":0,"d":"0.00 RSD"}},{"$f":"SUMIFS(Izdaci[IZNOS],Izdaci[DATUM],\"<=\"&DtMiddle+1,Izdaci[DATUM],\">=\"&DtStart)","v":{"v":0,"d":"0.00 RSD"}}]
[null,"Rashodi od 16. do kraja meseca",{"$f":"SUMIFS(Izdaci[IZNOS],Izdaci[DATUM],\"<=\"&DtEnd,Izdaci[DATUM],\">=\"&DtMiddle+1)","v":{"v":0,"d":"0.00 RSD"}},{"$f":"SUMIFS(Izdaci[IZNOS],Izdaci[DATUM],\"<=\"&DtEnd,Izdaci[DATUM],\">=\"&DtMiddle+1)","v":{"v":1075,"d":"1,075.00 RSD"}},{"$f":"SUMIFS(Izdaci[IZNOS],Izdaci[DATUM],\"<=\"&DtEnd,Izdaci[DATUM],\">=\"&DtMiddle+1)","v":{"v":5350,"d":"5,350.00 RSD"}},{"$f":"SUMIFS(Izdaci[IZNOS],Izdaci[DATUM],\"<=\"&DtEnd,Izdaci[DATUM],\">=\"&DtMiddle+1)","v":{"v":1600,"d":"1,600.00 RSD"}},{"$f":"SUMIFS(Izdaci[IZNOS],Izdaci[DATUM],\"<=\"&DtEnd,Izdaci[DATUM],\">=\"&DtMiddle+1)","v":{"v":0,"d":"0.00 RSD"}},{"$f":"SUMIFS(Izdaci[IZNOS],Izdaci[DATUM],\"<=\"&DtEnd,Izdaci[DATUM],\">=\"&DtMiddle+1)","v":{"v":0,"d":"0.00 RSD"}},{"$f":"SUMIFS(Izdaci[IZNOS],Izdaci[DATUM],\"<=\"&DtEnd,Izdaci[DATUM],\">=\"&DtMiddle+1)","v":{"v":0,"d":"0.00 RSD"}},{"$f":"SUMIFS(Izdaci[IZNOS],Izdaci[DATUM],\"<=\"&DtEnd,Izdaci[DATUM],\">=\"&DtMiddle+1)","v":{"v":0,"d":"0.00 RSD"}},{"$f":"SUMIFS(Izdaci[IZNOS],Izdaci[DATUM],\"<=\"&DtEnd,Izdaci[DATUM],\">=\"&DtMiddle+1)","v":{"v":0,"d":"0.00 RSD"}},{"$f":"SUMIFS(Izdaci[IZNOS],Izdaci[DATUM],\"<=\"&DtEnd,Izdaci[DATUM],\">=\"&DtMiddle+1)","v":{"v":0,"d":"0.00 RSD"}},{"$f":"SUMIFS(Izdaci[IZNOS],Izdaci[DATUM],\"<=\"&DtEnd,Izdaci[DATUM],\">=\"&DtMiddle+1)","v":{"v":0,"d":"0.00 RSD"}},{"$f":"SUMIFS(Izdaci[IZNOS],Izdaci[DATUM],\"<=\"&DtEnd,Izdaci[DATUM],\">=\"&DtMiddle+1)","v":{"v":0,"d":"0.00 RSD"}}]

{"sheet":"Troškovi i prihodi","index":2,"n_rows":36,"n_cols":9,"rows_kept":36,"merged":[[0,1,0,6],[0,7,0,8]]}
["Kreirajte listu prihoda i rashoda u ovom radnom listu. Korisna uputstva o tome kako da koristite ovaj radni list nalaze se u ćelijama u ovoj koloni. Naslov radne sveske nalazi se u ćeliji sa desne strane, a naslov radnog lista u ćeliji H1.",{"$f":"Semi_Monthly_Home_Budget_Title","v":"Polumesečni kućni budžet"},{"$nulls":5},"PRIHODI I RASHODI"]
["Oznaka „Prihod“ nalazi se u ćeliji sa desne strane, a oznaka „Rashodi“ u ćeliji F2.","PRIHOD",{"$nulls":3},"RASHODI"]
["Unesite detalje u tabelu „Prihod\" počevši od ćelije sa desne strane i u tabelu „Rashodi“ počevši od ćelije F3.","DATUM","OPIS","IZNOS",null,"DATUM","KATEGORIJA","OPIS","IZNOS"]
[null,{"$f":"TODAY()","v":"2022-05-12"},"Bonus",{"v":500,"d":"500.00 RSD"},null,{"$f":"TODAY()","v":"2022-05-12"},"Zdravstvo","Osiguranje",{"v":500,"d":"500.00 RSD"}]
[null,{"$f":"TODAY()-14","v":"2022-04-28"},"Dejanova plata",{"v":1300,"d":"1,300.00 RSD"},null,{"$f":"TODAY()-7","v":"2022-05-05"},"Domaćinstvo","Hipoteka",{"v":1000,"d":"1,000.00 RSD"}]
[null,{"$f":"TODAY()-14","v":"2022-04-28"},"Petrina plata",{"v":1300,"d":"1,300.00 RSD"},null,"2022-05-05","Domaćinstvo","Struja",{"v":100,"d":"100.00 RSD"}]
[null,{"$f":"TODAY()-28","v":"2022-04-14"},"Dejanova plata",{"v":1500,"d":"1,500.00 RSD"},null,"2022-05-05","Domaćinstvo","Voda/kanalizacija",{"v":50,"d":"50.00 RSD"}]
[null,{"$f":"TODAY()-28","v":"2022-04-14"},"Petrina plata",{"v":1600,"d":"1,600.00 RSD"},null,"2022-05-05","Domaćinstvo","Smeće",{"v":25,"d":"25.00 RSD"}]
[null,{"$f":"TODAY()-42","v":"2022-03-31"},"Dejanova plata",{"v":1300,"d":"1,300.00 RSD"},null,"2022-05-05","Domaćinstvo","Mobilni telefon",{"v":100,"d":"100.00 RSD"}]
[null,{"$f":"TODAY()-42","v":"2022-03-31"},"Petrina plata",{"v":1300,"d":"1,300.00 RSD"},null,"2022-05-05","Domaćinstvo","Mobilni telefon",{"v":30,"d":"30.00 RSD"}]
[null,{"$f":"TODAY()-56","v":"2022-03-17"},"Dejanova plata",{"v":1500,"d":"1,500.00 RSD"},null,"2022-05-05","Domaćinstvo","Hipoteka",{"v":50,"d":"50.00 RSD"}]
[null,{"$f":"TODAY()-56","v":"2022-03-17"},"Petrina plata",{"v":1600,"d":"1,600.00 RSD"},null,"2022-05-05","Domaćinstvo","Mobilni telefon",{"v":50,"d":"50.00 RSD"}]
[null,{"$f":"TODAY()-70","v":"2022-03-03"},"Dejanova plata",{"v":1300,"d":"1,300.00 RSD"},null,{"$f":"TODAY()-7","v":"2022-05-05"},"Domaćinstvo","Mobilni telefon",{"v":25,"d":"25.00 RSD"}]
[{"$nulls":5},{"$f":"TODAY()-8","v":"2022-05-04"},"Domaćinstvo","Struja",{"v":100,"d":"100.00 RSD"}]
[{"$nulls":5},{"$f":"TODAY()-9","v":"2022-05-03"},"Zabava","Filmovi",{"v":37,"d":"37.00 RSD"}]
[{"$nulls":5},{"$f":"TODAY()-10","v":"2022-05-02"},"Hrana","Namirnice",{"v":350,"d":"350.00 RSD"}]
[{"$nulls":5},{"$f":"TODAY()-11","v":"2022-05-01"},"Hrana","Restorani",{"v":75,"d":"75.00 RSD"}]
[{"$nulls":5},{"$f":"TODAY()-12","v":"2022-04-30"},"Deca","Novac za ručak",{"v":150,"d":"150.00 RSD"}]
[{"$nulls":5},{"$f":"TODAY()-13","v":"2022-04-29"},"Investicioni nalozi","Štednja",{"v":250,"d":"250.00 RSD"}]
[{"$nulls":5},{"$f":"TODAY()-14","v":"2022-04-28"},"Investicioni nalozi","Investicioni nalog",{"v":250,"d":"250.00 RSD"}]
[{"$nulls":5},{"$f":"TODAY()-15","v":"2022-04-27"},"Lično","Teretana/fitnes centar",{"v":100,"d":"100.00 RSD"}]
[{"$nulls":5},{"$f":"TODAY()-16","v":"2022-04-26"},"Ljubimci","Hrana",{"v":50,"d":"50.00 RSD"}]
[{"$nulls":5},{"$f":"TODAY()-20","v":"2022-04-22"},"Ljubimci","Doterivanje",{"v":50,"d":"50.00 RSD"}]
[{"$nulls":5},{"$f":"TODAY()-20","v":"2022-04-22"},"Ljubimci","Drugo",{"v":50,"d":"50.00 RSD"}]
[{"$nulls":5},{"$f":"TODAY()-25","v":"2022-04-17"},"Prevoz","Plaćanje za automobil 1 ",{"v":300,"d":"300.00 RSD"}]
[{"$nulls":5},{"$f":"TODAY()-25","v":"2022-04-17"},"Prevoz","Plaćanje za automobil 2 ",{"v":350,"d":"350.00 RSD"}]
[{"$nulls":5},{"$f":"TODAY()-25","v":"2022-04-17"},"Prevoz","Osiguranje automobila",{"v":50,"d":"50.00 RSD"}]
[{"$nulls":5},{"$f":"TODAY()-30","v":"2022-04-12"},"Prevoz","Gorivo",{"v":50,"d":"50.00 RSD"}]
[{"$nulls":5},{"$f":"TODAY()-31","v":"2022-04-11"},"Prevoz","Gorivo",{"v":25,"d":"25.00 RSD"}]
[{"$nulls":5},{"$f":"TODAY()-42","v":"2022-03-31"},"Prevoz","Plaćanje za automobil 2 ",{"v":150,"d":"150.00 RSD"}]
[{"$nulls":5},{"$f":"TODAY()-45","v":"2022-03-28"},"Domaćinstvo","Hipoteka",{"v":5000,"d":"5,000.00 RSD"}]
[{"$nulls":5},{"$f":"TODAY()-50","v":"2022-03-23"},"Domaćinstvo","Struja",{"v":200,"d":"200.00 RSD"}]
[{"$nulls":5},{"$f":"TODAY()-65","v":"2022-03-08"},"Domaćinstvo","Mobilni telefon",{"v":100,"d":"100.00 RSD"}]
[{"$nulls":5},{"$f":"TODAY()-70","v":"2022-03-03"},"Domaćinstvo","Smeće",{"v":50,"d":"50.00 RSD"}]
[{"$nulls":5},{"$f":"TODAY()-75","v":"2022-02-26"},"Domaćinstvo","Hipoteka",{"v":1000,"d":"1,000.00 RSD"}]
[{"$nulls":5},{"$f":"TODAY()-78","v":"2022-02-23"},"Zabava","Filmovi",{"v":75,"d":"75.00 RSD"}]

{"sheet":"Izveštaj o budžetu","index":3,"n_rows":26,"n_cols":6,"rows_kept":26,"merged":[[0,1,0,4],[1,1,1,3],[4,3,4,5]]}
["Kreirajte izveštaj o budžetu na ovom radnom listu. Korisna uputstva o tome kako da koristite ovaj radni list nalaze se u ćelijama u ovoj koloni. Naslov radne sveske nalazi se u ćeliji sa desne strane, a naslov radnog lista u ćeliji F1.",{"$f":"Semi_Monthly_Home_Budget_Title","v":"Polumesečni kućni budžet"},{"$nulls":3},"IZVEŠTAJ O BUDŽETU"]
["Izaberite stavke „Godine“, „Kvartali“, „Meseci“ ili „Dani“ i koristite klizač u ćeliji sa desne strane da biste prikazali izvedenu tabelu „Rashodi“ za izabrani period. Segmentator kategorije za filtriranje podataka izvedene tabele nalazi se u ćeliji E2, a segmentator opisa u ćeliji F2.","Filtriranje vremenske ose se nalazi u ovoj ćeliji.",null,null,"Segmentator za filtriranje podataka iz izvedene tabele na osnovu kategorije nalazi se u ovoj ćeliji.","Segmentator za filtriranje podataka iz izvedene tabele na osnovu opisa nalazi se u ovoj ćeliji."]
["Savet se nalazi u ćeliji sa desne strane.","Pritisnite kombinaciju tastera Shift+F10 u izvedenoj tabeli „Rashodi“, a zatim izaberite stavku „Osveži“ da biste ažurirali podatke na ovom listu ili izaberite stavku „Osveži“ u okviru kartice „Analiza“."]
["Oznaka „Rashodi“ se nalazi u ćeliji sa desne strane.","RASHODI"]
["Izvedena tabela koja prikazuje rashode počinje u ćeliji sa desne strane. Oznaka „Ukupne vrednosti kategorije\" nalazi se u ćeliji D4.","Oznake redova","Zbir od IZNOS","Ukupne vrednosti kategorija"]
["Kružni grafikon koji upoređuje ukupne vrednosti svake kategorije nalazi se u ćeliji D6.","Plaćanje za automobil 1 ",{"v":300,"d":"300.00 RSD"}]
[null,"Plaćanje za automobil 2 ",{"v":500,"d":"500.00 RSD"}]
[null,"Doterivanje",{"v":50,"d":"50.00 RSD"}]
[null,"Drugo",{"v":50,"d":"50.00 RSD"}]
[null,"Filmovi",{"v":112,"d":"112.00 RSD"}]
[null,"Gorivo",{"v":75,"d":"75.00 RSD"}]
[null,"Hipoteka",{"v":7050,"d":"7,050.00 RSD"}]
[null,"Hrana",{"v":50,"d":"50.00 RSD"}]
[null,"Investicioni nalog",{"v":250,"d":"250.00 RSD"}]
[null,"Mobilni telefon",{"v":305,"d":"305.00 RSD"}]
[null,"Namirnice",{"v":350,"d":"350.00 RSD"}]
[null,"Novac za ručak",{"v":150,"d":"150.00 RSD"}]
[null,"Osiguranje",{"v":500,"d":"500.00 RSD"}]
[null,"Osiguranje automobila",{"v":50,"d":"50.00 RSD"}]
[null,"Restorani",{"v":75,"d":"75.00 RSD"}]
[null,"Smeće",{"v":75,"d":"75.00 RSD"}]
[null,"Struja",{"v":400,"d":"400.00 RSD"}]
[null,"Štednja",{"v":250,"d":"250.00 RSD"}]
[null,"Teretana/fitnes centar",{"v":100,"d":"100.00 RSD"}]
[null,"Voda/kanalizacija",{"v":50,"d":"50.00 RSD"}]
[null,"Konačni zbir",{"v":10742,"d":"10,742.00 RSD"}]

{"sheet":"Liste podataka","index":4,"n_rows":8,"n_cols":13,"rows_kept":8,"merged":[[0,1,0,11]]}
["Unesite podatke o kategorijama na ovaj radni list da biste popunili padajuće liste u tabeli „Rashodi“ u radnom listu „Rashodi i prihod“. Izmenite imena ili opise kategorija ispod svake kategorije da biste ažurirali liste. Korisna uputstva o tome kako da koristite ovaj radni list nalaze se u ćelijama u ovoj koloni. Naslov radne sveske nalazi se u ćeliji sa desne strane, a naslov radnog lista u ćeliji M1.",{"$f":"Semi_Monthly_Home_Budget_Title","v":"Polumesečni kućni budžet"},{"$nulls":10},"LISTE SA PODACIMA"]
["Savet se nalazi u ćeliji sa desne strane.","PODEŠAVANJE         Dolenavedeni podaci o kategorijama popunjavaju padajuće liste u tabeli „Rashodi“ na listu „Rashodi i prihod“. Izmenite imena ili opise kategorija ispod svake kategorije da biste ažurirali liste."]
["Unesite imena ili opise kategorija ili ih izmenite ispod svake kategorije u tabeli počevši od ćelije sa desne strane.","Domaćinstvo","Zabava","Hrana","Pokloni/donacije","Deca","Investicioni nalozi","Zdravstvo","Drugo","Lično","Ljubimci","Porezi/pravni aspekti","Prevoz"]
[null,"Hipoteka","Filmovi","Namirnice","Dobrotvorni prilog 1","Odeća","Individualni penzijski račun IRA","Lekar/klinika","Drugo","Odeća","Hrana","Federalni aspekti","Plaćanje za automobil 1 "]
[null,"Struja","Video zapis/filmovi","Restorani","Dobrotvorni prilog 2","Igračke/Igre","Štednja","Osiguranje","Dugovi organizacije","Kosa/nokti","Zalihe","Državni","Plaćanje za automobil 2 "]
[null,"Voda/kanalizacija","Muzika",null,"Dobrotvorni prilog 3","Novac za ručak","Tekući račun",null,null,"Hemijsko čišćenje","Zdravstvo","Lokalni","Osiguranje automobila"]
[null,"Smeće","Koncerti/pozorište",null,"Poklon","Članarine/naknade","Penzija",null,null,"Teretana/fitnes centar","Doterivanje","Drugo","Licenciranje/registracija"]
[null,"Mobilni telefon","Sportski događaji",null,null,"Školski pribor","Investicioni nalog",null,null,"Kupovina","Drugo","Advokat","Gorivo"]

{"sheet":"Izvedena tabela kategorije","index":5,"n_rows":13,"n_cols":13,"rows_kept":13,"hidden":true}
[null,"Polumesečni kućni budžet",{"$nulls":10},"IZVEDENA KATEGORIJA"]
[null,"Ova izvedena tabela predstavlja izvor podataka za izvedeni grafikon „Ukupne vrednosti kategorije“ u izveštaju o budžetu. "]
[null,"Oznake redova","Zbir od IZNOS"]
[null,"Deca",{"v":150,"d":"150 RSD"}]
[null,"Zabava",{"v":112,"d":"112 RSD"}]
[null,"Hrana",{"v":425,"d":"425 RSD"}]
[null,"Domaćinstvo",{"v":7880,"d":"7,880 RSD"}]
[null,"Investicioni nalozi",{"v":500,"d":"500 RSD"}]
[null,"Zdravstvo",{"v":500,"d":"500 RSD"}]
[null,"Lično",{"v":100,"d":"100 RSD"}]
[null,"Ljubimci",{"v":150,"d":"150 RSD"}]
[null,"Prevoz",{"v":925,"d":"925 RSD"}]
[null,"Konačni zbir",{"v":10742,"d":"10,742 RSD"}]